[Event "11th LCC FIDE Open 2019"]
[Site "London"]
[Date "2019.11.29"]
[Round "1.23"]
[White "Vaishali, R."]
[Black "Pellicoro, Nathalie"]
[Result "0-1"]
[ECO "B80"]
[WhiteElo "2376"]
[BlackElo "1967"]
[Annotator "ChessBase"]
[PlyCount "52"]
[EventDate "2019.11.29"]
[EventType "swiss"]
[EventCountry "ENG"]
[SourceTitle "playchess.com"]
[Source "ChessBase"]
[SourceQuality "1"]
[TimeControl "40/5400+30:1800+30"]

1. e4 {[%emt 0:00:00]} c5 {[%emt 0:00:00]} 2. Nf3 {[%emt 0:00:02]} e6 {[%emt 0:00:08]} 3. d4 {[%emt 0:00:04]} cxd4 {[%emt 0:00:14]} 4. Nxd4 {[%emt 0:00:03]} Nc6 {[%emt 0:00:18]} 5. Nc3 {[%emt 0:00:05]} Qc7 {[%emt 0:00:14]} 6. g3 {[%emt 0:00:20]} Nf6 {[%emt 0:03:06]} 7. Bg2 {[%emt 0:00:06]} a6 {[%emt 0:06:47]} 8. O-O {[%emt 0:00:29]} Be7 {[%emt 0:02:14]} 9. Re1 {[%emt 0:00:43]} d6 {[%emt 0:03:29]} 10. Nxc6 {[%emt 0:01:08]} bxc6 {[%emt 0:01:49]} 11. e5 {[%emt 0:01:57]} dxe5 {[%emt 0:03:40]} 12. Rxe5 {[%emt 0:00:18]} Nd5 {[%emt 0:03:57]} 13. Nxd5 {[%emt 0:06:58]} cxd5 {[%emt 0:03:05]} 14. Bf4 {[%emt 0:05:29]} Qc5 {[%emt 0:10:10]} 15. c4 {[%emt 0:13:11]} Qxc4 {[%emt 0:09:13]} 16. Rc1 {[%emt 0:05:43]} Qxa2 {[%emt 0:14:20]} 17. Rxd5 {[%emt 0:14:14]} exd5 {[%emt 0:21:14]} 18. Bxd5 {[%emt 0:00:08]} Qa5 {[%emt 0:06:50]} 19. Bc6+ {[%emt 0:11:31]} Kf8 {[%emt 0:00:47]} 20. Bxa8 {[%emt 0:00:07]} Be6 {[%emt 0:01:39]} 21. Rc7 {[%emt 0:04:20]} g5 {[%emt 0:05:06]} 22. Qd4 {[%emt 0:12:41]} Qe1+ {[%emt 0:01:42]} 23. Kg2 {[%emt 0:00:02]} Bh3+ {[%emt 0:00:33]} 24. Kxh3 {[%emt 0:00:25]} Qf1+ {[%emt 0:00:12]} 25. Bg2 {[%emt 0:00:20]} g4+ {[%emt 0:01:03]} 26. Kxg4 {[%emt 0:00:03]} Qe2+ {[%emt 0:00:31]} 0-1

[Event "11th LCC FIDE Open 2019"]
[Site "London"]
[Date "2019.11.29"]
[Round "1.24"]
[White "Burke, John"]
[Black "Taylor, Adam C"]
[Result "0-1"]
[ECO "A45"]
[WhiteElo "1966"]
[BlackElo "2371"]
[Annotator "ChessBase"]
[PlyCount "48"]
[EventDate "2019.11.29"]
[EventType "swiss"]
[EventCountry "ENG"]
[SourceTitle "playchess.com"]
[Source "ChessBase"]
[SourceQuality "1"]
[TimeControl "40/5400+30:1800+30"]

1. d4 {[%emt 0:00:00]} Nf6 {[%emt 0:00:00]} 2. Bf4 {[%emt 0:00:03]} c5 {[%emt 0:00:27]} 3. dxc5 {[%emt 0:00:29]} Na6 {[%emt 0:01:48]} 4. Nc3 {[%emt 0:16:31]} Nxc5 {[%emt 0:00:14]} 5. e3 {[%emt 0:00:09]} Qa5 {[%emt 0:11:20]} 6. Bd3 {[%emt 0:10:38]} e5 {[%emt 0:03:17]} 7. Bg3 {[%emt 0:04:34]} Na4 {[%emt 0:02:10]} 8. Nge2 {[%emt 0:09:41]} Nxb2 {[%emt 0:06:06]} 9. Qb1 {[%emt 0:01:42]} Ba3 {[%emt 0:16:37]} 10. O-O {[%emt 0:00:49]} a6 {[%emt 0:00:08]} 11. Nd1 {[%emt 0:12:44]} Nxd3 {[%emt 0:08:21]} 12. cxd3 {[%emt 0:00:02]} d6 {[%emt 0:00:27]} 13. Ndc3 {[%emt 0:02:33]} O-O {[%emt 0:00:47]} 14. Qb3 {[%emt 0:07:26]} Be6 {[%emt 0:01:49]} 15. Qc2 {[%emt 0:11:58]} Rac8 {[%emt 0:00:38]} 16. e4 {[%emt 0:05:02]} Rc7 {[%emt 0:02:25]} 17. f3 {[%emt 0:02:53]} Rfc8 {[%emt 0:00:16]} 18. Be1 {[%emt 0:00:47]} d5 {[%emt 0:03:39]} 19. Qa4 {[%emt 0:09:03]} Qxa4 {[%emt 0:04:28]} 20. Nxa4 {[%emt 0:00:01]} Rc2 {[%emt 0:00:12]} 21. Ng3 {[%emt 0:00:13]} R8c6 {[%emt 0:04:14]} 22. Rf2 {[%emt 0:01:40]} b5 {[%emt 0:01:15]} 23. Rxc2 {[%emt 0:00:10]} Rxc2 {[%emt 0:00:05]} 24. Nc3 {[%emt 0:00:12]} Bb2 {[%emt 0:00:14]} 0-1

[Event "11th LCC FIDE Open 2019"]
[Site "London"]
[Date "2019.11.29"]
[Round "1.25"]
[White "Beinoras, Mindaugas"]
[Black "Ditmas, Hugh"]
[Result "1-0"]
[ECO "E12"]
[WhiteElo "2350"]
[BlackElo "1961"]
[Annotator "ChessBase"]
[PlyCount "57"]
[EventDate "2019.11.29"]
[EventType "swiss"]
[EventCountry "ENG"]
[SourceTitle "playchess.com"]
[Source "ChessBase"]
[SourceQuality "1"]
[TimeControl "40/5400+30:1800+30"]

1. d4 {[%emt 0:00:00]} Nf6 {[%emt 0:00:00]} 2. c4 {[%emt 0:00:00]} e6 {[%emt 0:00:00]} 3. Nf3 {[%emt 0:00:00]} b6 {[%emt 0:00:00]} 4. a3 {[%emt 0:00:00]} Bb7 {[%emt 0:00:04]} 5. Nc3 {[%emt 0:00:23]} d5 {[%emt 0:00:07]} 6. cxd5 {[%emt 0:00:00]} Nxd5 {[%emt 0:00:06]} 7. Qc2 {[%emt 0:00:12]} c5 {[%emt 0:01:14]} 8. e4 {[%emt 0:10:14]} Nxc3 {[%emt 0:00:25]} 9. bxc3 {[%emt 0:00:35]} Qc7 {[%emt 0:02:57]} 10. Bb5+ {[%emt 0:02:32]} Bc6 {[%emt 0:02:01]} 11. Bc4 {[%emt 0:01:08]} b5 {[%emt 0:07:39]} 12. Be2 {[%emt 0:02:21]} c4 {[%emt 0:12:27]} 13. O-O {[%emt 0:04:58]} Be7 {[%emt 0:02:42]} 14. Ne5 {[%emt 0:04:07]} Bb7 {[%emt 0:03:55]} 15. Rb1 {[%emt 0:00:39]} f6 {[%emt 0:01:56]} 16. Nf3 {[%emt 0:02:05]} a6 {[%emt 0:10:42]} 17. a4 {[%emt 0:00:42]} Qd7 {[%emt 0:01:39]} 18. Rd1 {[%emt 0:05:05]} O-O {[%emt 0:00:28]} 19. d5 {[%emt 0:02:56]} e5 {[%emt 0:01:46]} 20. Qb2 {[%emt 0:02:59]} Qg4 {[%emt 0:03:47]} 21. Ng5 {[%emt 0:03:42]} Qd7 {[%emt 0:04:54]} 22. Ne6 {[%emt 0:00:43]} Rc8 {[%emt 0:00:14]} 23. Be3 {[%emt 0:05:01]} b4 {[%emt 0:00:32]} 24. cxb4 {[%emt 0:00:20]} Qxa4 {[%emt 0:02:48]} 25. Nc5 {[%emt 0:01:13]} Qb5 {[%emt 0:07:21]} 26. Qa2 {[%emt 0:03:00]} Bxc5 {[%emt 0:10:07]} 27. bxc5 {[%emt 0:00:29]} Qd7 {[%emt 0:03:36]} 28. Bxc4 {[%emt 0:00:31]} a5 {[%emt 0:01:08]} 29. c6 {[%emt 0:00:22]} 1-0

[Event "11th LCC FIDE Open 2019"]
[Site "London"]
[Date "2019.11.29"]
[Round "1.26"]
[White "Korning, Peter"]
[Black "Bates, Richard A"]
[Result "0-1"]
[ECO "B22"]
[WhiteElo "1961"]
[BlackElo "2342"]
[Annotator "ChessBase"]
[PlyCount "82"]
[EventDate "2019.11.29"]
[EventType "swiss"]
[EventCountry "ENG"]
[SourceTitle "playchess.com"]
[Source "ChessBase"]
[SourceQuality "1"]
[TimeControl "40/5400+30:1800+30"]

1. e4 {[%emt 0:00:00]} c5 {[%emt 0:00:00]} 2. d4 {[%emt 0:00:00]} cxd4 {[%emt 0:00:02]} 3. c3 {[%emt 0:00:00]} Nf6 {[%emt 0:01:23]} 4. e5 {[%emt 0:00:01]} Nd5 {[%emt 0:00:11]} 5. Nf3 {[%emt 0:00:23]} e6 {[%emt 0:00:37]} 6. cxd4 {[%emt 0:01:30]} d6 {[%emt 0:00:10]} 7. Nc3 {[%emt 0:03:33]} Nxc3 {[%emt 0:01:29]} 8. bxc3 {[%emt 0:00:02]} Qc7 {[%emt 0:00:13]} 9. Bd2 {[%emt 0:02:24]} Nd7 {[%emt 0:04:51]} 10. exd6 {[%emt 0:03:07]} Bxd6 {[%emt 0:00:10]} 11. Bd3 {[%emt 0:00:18]} b6 {[%emt 0:09:07]} 12. O-O {[%emt 0:04:51]} Bb7 {[%emt 0:00:35]} 13. Re1 {[%emt 0:02:39]} O-O {[%emt 0:09:29]} 14. h3 {[%emt 0:05:52]} Bf4 {[%emt 0:03:03]} 15. Ne5 {[%emt 0:13:24]} Bxd2 {[%emt 0:07:39]} 16. Nxd7 {[%emt 0:04:38]} Qxd7 {[%emt 0:06:47]} 17. Qxd2 {[%emt 0:00:43]} Rac8 {[%emt 0:01:02]} 18. Rac1 {[%emt 0:05:49]} Rfd8 {[%emt 0:02:44]} 19. Qf4 {[%emt 0:10:11]} Qc7 {[%emt 0:05:05]} 20. Qh4 {[%emt 0:02:36]} g6 {[%emt 0:00:55]} 21. Qf6 {[%emt 0:06:04]} Rd5 {[%emt 0:02:17]} 22. Be4 {[%emt 0:06:31]} Ra5 {[%emt 0:02:13]} 23. Bb1 {[%emt 0:04:01]} Qd8 {[%emt 0:04:08]} 24. Qxd8+ {[%emt 0:06:28]} Rxd8 {[%emt 0:00:07]} 25. Red1 {[%emt 0:00:29]} Rg5 {[%emt 0:07:10]} 26. g3 {[%emt 0:02:13]} e5 {[%emt 0:05:33]} 27. h4 {[%emt 0:04:04]} Rh5 {[%emt 0:00:06]} 28. dxe5 {[%emt 0:04:53]} Rxd1+ {[%emt 0:00:09]} 29. Rxd1 {[%emt 0:00:03]} Rxe5 {[%emt 0:00:16]} 30. Kf1 {[%emt 0:00:40]} Bf3 {[%emt 0:11:05]} 31. Rd4 {[%emt 0:01:11]} Rb5 {[%emt 0:01:38]} 32. Rb4 {[%emt 0:01:54]} Rc5 {[%emt 0:01:27]} 33. c4 {[%emt 0:00:48]} Re5 {[%emt 0:05:12]} 34. Bd3 {[%emt 0:01:34]} Bc6 {[%emt 0:02:27]} 35. a4 {[%emt 0:01:06]} Kf8 {[%emt 0:00:23]} 36. Bc2 {[%emt 0:01:15]} Ke7 {[%emt 0:00:36]} 37. Rb1 {[%emt 0:00:26]} Kd6 {[%emt 0:00:24]} 38. f4 {[%emt 0:02:16]} Re3 {[%emt 0:00:40]} 39. Kf2 {[%emt 0:00:29]} Rf3+ {[%emt 0:00:25]} 40. Ke2 {[%emt 0:00:02]} Rxg3 {[%emt 0:00:14]} 41. h5 {[%emt 0:02:28]} Rg2+ {[%emt 0:00:32]} 0-1

[Event "11th LCC FIDE Open 2019"]
[Site "London"]
[Date "2019.11.29"]
[Round "1.27"]
[White "Bradbury, Neil H"]
[Black "Deaconu, Mihai Ionut"]
[Result "1-0"]
[ECO "E92"]
[WhiteElo "2326"]
[BlackElo "1957"]
[Annotator "ChessBase"]
[PlyCount "73"]
[EventDate "2019.11.29"]
[EventType "swiss"]
[EventCountry "ENG"]
[SourceTitle "playchess.com"]
[Source "ChessBase"]
[SourceQuality "1"]
[TimeControl "40/5400+30:1800+30"]

1. d4 {[%emt 0:00:00]} Nf6 {[%emt 0:00:00]} 2. c4 {[%emt 0:00:00]} g6 {[%emt 0:00:00]} 3. Nc3 {[%emt 0:00:00]} Bg7 {[%emt 0:00:00]} 4. e4 {[%emt 0:00:10]} d6 {[%emt 0:00:00]} 5. Nf3 {[%emt 0:00:20]} O-O {[%emt 0:00:08]} 6. h3 {[%emt 0:00:12]} e5 {[%emt 0:02:41]} 7. d5 {[%emt 0:00:06]} a5 {[%emt 0:00:56]} 8. Be2 {[%emt 0:03:35]} Na6 {[%emt 0:01:13]} 9. Be3 {[%emt 0:00:12]} Nc5 {[%emt 0:08:42]} 10. Nd2 {[%emt 0:04:35]} Ne8 {[%emt 0:00:45]} 11. Nb3 {[%emt 0:27:03]} b6 {[%emt 0:04:23]} 12. Nxc5 {[%emt 0:03:33]} dxc5 {[%emt 0:01:48]} 13. Qd2 {[%emt 0:06:31]} Nd6 {[%emt 0:03:48]} 14. O-O-O {[%emt 0:03:15]} Ba6 {[%emt 0:13:04]} 15. b3 {[%emt 0:00:28]} a4 {[%emt 0:00:37]} 16. f3 {[%emt 0:00:29]} axb3 {[%emt 0:02:58]} 17. axb3 {[%emt 0:00:08]} Qd7 {[%emt 0:08:34]} 18. Kc2 {[%emt 0:03:46]} b5 {[%emt 0:19:50]} 19. cxb5 {[%emt 0:00:40]} Nxb5 {[%emt 0:00:10]} 20. Bxb5 {[%emt 0:00:56]} Bxb5 {[%emt 0:00:05]} 21. Bxc5 {[%emt 0:00:27]} Rfb8 {[%emt 0:03:55]} 22. Ra1 {[%emt 0:00:34]} Ba6 {[%emt 0:09:16]} 23. Ra2 {[%emt 0:06:39]} Qc8 {[%emt 0:02:22]} 24. Rha1 {[%emt 0:02:05]} Qb7 {[%emt 0:01:19]} 25. b4 {[%emt 0:02:39]} Bc4 {[%emt 0:01:14]} 26. Rxa8 {[%emt 0:00:25]} Rxa8 {[%emt 0:00:02]} 27. Rxa8+ {[%emt 0:00:10]} Qxa8 {[%emt 0:00:03]} 28. Kb2 {[%emt 0:00:25]} f5 {[%emt 0:06:13]} 29. Qe1 {[%emt 0:19:04]} Qa6 {[%emt 0:03:04]} 30. g4 {[%emt 0:02:13]} fxe4 {[%emt 0:02:05]} 31. fxe4 {[%emt 0:01:59]} Bh6 {[%emt 0:02:03]} 32. Qh4 {[%emt 0:09:30]} Bc1+ {[%emt 0:00:06]} 33. Kb1 {[%emt 0:01:02]} g5 {[%emt 0:00:10]} 34. Qh5 {[%emt 0:00:19]} Qa8 {[%emt 0:04:04]} 35. Qh6 {[%emt 0:01:38]} Qe8 {[%emt 0:01:19]} 36. Kxc1 {[%emt 0:00:15]} Qf7 {[%emt 0:00:02]} 37. Qxg5+ {[%emt 0:00:49]} 1-0

[Event "11th LCC FIDE Open 2019"]
[Site "London"]
[Date "2019.11.29"]
[Round "1.28"]
[White "Royal, Shreyas"]
[Black "Paterek, Michal"]
[Result "1-0"]
[ECO "D47"]
[WhiteElo "1941"]
[BlackElo "2317"]
[Annotator "ChessBase"]
[PlyCount "93"]
[EventDate "2019.11.29"]
[EventType "swiss"]
[EventCountry "ENG"]
[SourceTitle "playchess.com"]
[Source "ChessBase"]
[SourceQuality "1"]
[TimeControl "40/5400+30:1800+30"]

1. d4 {[%emt 0:00:00]} d5 {[%emt 0:00:00]} 2. c4 {[%emt 0:00:00]} c6 {[%emt 0:00:00]} 3. Nf3 {[%emt 0:00:32]} Nf6 {[%emt 0:00:00]} 4. Nc3 {[%emt 0:00:48]} e6 {[%emt 0:01:00]} 5. e3 {[%emt 0:01:03]} Nbd7 {[%emt 0:00:42]} 6. Qc2 {[%emt 0:01:07]} a6 {[%emt 0:01:12]} 7. Bd3 {[%emt 0:06:51]} dxc4 {[%emt 0:04:09]} 8. Bxc4 {[%emt 0:00:58]} b5 {[%emt 0:00:51]} 9. Be2 {[%emt 0:03:51]} Bb7 {[%emt 0:02:09]} 10. O-O {[%emt 0:01:16]} c5 {[%emt 0:01:02]} 11. Rd1 {[%emt 0:02:56]} Rc8 {[%emt 0:02:08]} 12. dxc5 {[%emt 0:04:10]} Bxc5 {[%emt 0:04:36]} 13. a3 {[%emt 0:04:26]} Qc7 {[%emt 0:03:36]} 14. Bd2 {[%emt 0:03:36]} O-O {[%emt 0:02:41]} 15. h3 {[%emt 0:04:55]} Ba7 {[%emt 0:04:12]} 16. Rac1 {[%emt 0:05:26]} Bb8 {[%emt 0:08:03]} 17. Qb1 {[%emt 0:06:08]} Bxf3 {[%emt 0:11:19]} 18. Bxf3 {[%emt 0:00:29]} Qh2+ {[%emt 0:00:12]} 19. Kf1 {[%emt 0:00:07]} Ne5 {[%emt 0:02:36]} 20. Ke2 {[%emt 0:08:26]} Nxf3 {[%emt 0:01:42]} 21. Kxf3 {[%emt 0:00:52]} Nd7 {[%emt 0:14:27]} 22. Rg1 {[%emt 0:03:22]} Ne5+ {[%emt 0:05:33]} 23. Ke2 {[%emt 0:02:03]} Rfd8 {[%emt 0:03:53]} 24. Ne4 {[%emt 0:06:48]} Rxc1 {[%emt 0:02:18]} 25. Qxc1 {[%emt 0:00:23]} Nd3 {[%emt 0:01:30]} 26. Qb1 {[%emt 0:00:30]} Qe5 {[%emt 0:03:48]} 27. Ba5 {[%emt 0:01:21]} Qxe4 {[%emt 0:03:45]} 28. Bxd8 {[%emt 0:01:12]} Nf4+ {[%emt 0:00:34]} 29. Kd2 {[%emt 0:00:07]} Qd5+ {[%emt 0:04:14]} 30. Ke1 {[%emt 0:00:47]} Nxg2+ {[%emt 0:03:04]} 31. Ke2 {[%emt 0:00:23]} Nxe3 {[%emt 0:08:00]} 32. fxe3 {[%emt 0:00:23]} Qxd8 {[%emt 0:00:03]} 33. Qe4 {[%emt 0:01:04]} g6 {[%emt 0:00:41]} 34. Rc1 {[%emt 0:02:05]} Kg7 {[%emt 0:02:03]} 35. Qd4+ {[%emt 0:00:12]} Qf6 {[%emt 0:00:13]} 36. Qxf6+ {[%emt 0:00:42]} Kxf6 {[%emt 0:00:04]} 37. Rc6 {[%emt 0:00:18]} Be5 {[%emt 0:00:48]} 38. b4 {[%emt 0:00:23]} h5 {[%emt 0:01:06]} 39. Rxa6 {[%emt 0:00:11]} g5 {[%emt 0:00:17]} 40. Ra5 {[%emt 0:01:00]} Bb2 {[%emt 0:00:21]} 41. Kf3 {[%emt 0:30:12]} Kg6 {[%emt 0:22:37]} 42. a4 {[%emt 0:00:00]} bxa4 {[%emt 0:01:11]} 43. b5 {[%emt 0:00:00]} f5 {[%emt 0:00:34]} 44. b6 {[%emt 0:00:00]} g4+ {[%emt 0:00:27]} 45. hxg4 {[%emt 0:00:00]} hxg4+ {[%emt 0:00:20]} 46. Kg2 {[%emt 0:00:00]} a3 {[%emt 0:00:34]} 47. b7 {[%emt 0:00:00]} 1-0

[Event "11th LCC FIDE Open 2019"]
[Site "London"]
[Date "2019.11.29"]
[Round "1.29"]
[White "Sowray, Peter J"]
[Black "Chapman, Matt"]
[Result "1/2-1/2"]
[ECO "D19"]
[WhiteElo "2316"]
[BlackElo "1937"]
[Annotator "ChessBase"]
[PlyCount "127"]
[EventDate "2019.11.29"]
[EventType "swiss"]
[EventCountry "ENG"]
[SourceTitle "playchess.com"]
[Source "ChessBase"]
[SourceQuality "1"]
[TimeControl "40/5400+30:1800+30"]

1. d4 {[%emt 0:00:00]} d5 {[%emt 0:00:00]} 2. c4 {[%emt 0:00:00]} c6 {[%emt 0:00:00]} 3. Nf3 {[%emt 0:00:00]} Nf6 {[%emt 0:00:00]} 4. Nc3 {[%emt 0:00:00]} dxc4 {[%emt 0:00:10]} 5. a4 {[%emt 0:00:06]} Bf5 {[%emt 0:00:14]} 6. e3 {[%emt 0:02:02]} e6 {[%emt 0:00:17]} 7. Bxc4 {[%emt 0:00:14]} Bb4 {[%emt 0:00:13]} 8. O-O {[%emt 0:00:12]} O-O {[%emt 0:00:55]} 9. Qe2 {[%emt 0:00:40]} Nbd7 {[%emt 0:00:39]} 10. e4 {[%emt 0:00:31]} Bg6 {[%emt 0:00:20]} 11. Bd3 {[%emt 0:00:30]} Bh5 {[%emt 0:01:08]} 12. e5 {[%emt 0:03:10]} Nd5 {[%emt 0:00:11]} 13. Nxd5 {[%emt 0:00:13]} cxd5 {[%emt 0:00:08]} 14. Qe3 {[%emt 0:00:58]} Be7 {[%emt 0:03:39]} 15. Ng5 {[%emt 0:07:28]} Bxg5 {[%emt 0:03:57]} 16. Qxg5 {[%emt 0:00:10]} Qxg5 {[%emt 0:00:13]} 17. Bxg5 {[%emt 0:00:09]} Nb8 {[%emt 0:00:16]} 18. a5 {[%emt 0:11:16]} Nc6 {[%emt 0:02:00]} 19. Ra4 {[%emt 0:00:54]} a6 {[%emt 0:02:54]} 20. Rc1 {[%emt 0:03:36]} Rfc8 {[%emt 0:05:58]} 21. f3 {[%emt 0:10:24]} Bg6 {[%emt 0:01:26]} 22. Be2 {[%emt 0:02:17]} Rc7 {[%emt 0:12:47]} 23. Ra3 {[%emt 0:06:28]} Rcc8 {[%emt 0:17:08]} 24. Be3 {[%emt 0:08:49]} Na7 {[%emt 0:04:54]} 25. Rac3 {[%emt 0:06:58]} Rxc3 {[%emt 0:00:29]} 26. Rxc3 {[%emt 0:00:59]} Rc8 {[%emt 0:01:14]} 27. Rxc8+ {[%emt 0:11:35]} Nxc8 {[%emt 0:00:09]} 28. Kf2 {[%emt 0:00:06]} Na7 {[%emt 0:01:36]} 29. Bd2 {[%emt 0:01:01]} Nc6 {[%emt 0:01:40]} 30. Ke3 {[%emt 0:03:53]} Bc2 {[%emt 0:01:08]} 31. g4 {[%emt 0:02:46]} h6 {[%emt 0:03:11]} 32. h4 {[%emt 0:01:54]} g6 {[%emt 0:01:44]} 33. Bc3 {[%emt 0:02:45]} Kg7 {[%emt 0:01:13]} 34. Kd2 {[%emt 0:01:22]} Ba4 {[%emt 0:00:38]} 35. Bd3 {[%emt 0:01:13]} g5 {[%emt 0:16:57]} 36. hxg5 {[%emt 0:03:22]} hxg5 {[%emt 0:00:05]} 37. Ke3 {[%emt 0:00:11]} Bd1 {[%emt 0:02:47]} 38. Kf2 {[%emt 0:04:35]} Ba4 {[%emt 0:00:22]} 39. f4 {[%emt 0:02:04]} gxf4 {[%emt 0:00:13]} 40. Kf3 {[%emt 0:00:07]} Bd1+ {[%emt 0:01:49]} 41. Kxf4 {[%emt 0:30:12]} Ba4 {[%emt 0:30:09]} 42. Be2 {[%emt 0:04:44]} Kg6 {[%emt 0:01:28]} 43. Ke3 {[%emt 0:00:00]} Kg7 {[%emt 0:00:00]} 44. Bf3 {[%emt 0:00:00]} Kg6 {[%emt 0:00:00]} 45. Bd2 {[%emt 0:00:00]} Bb5 {[%emt 0:00:00]} 46. Bd1 {[%emt 0:00:00]} Bc4 {[%emt 0:00:00]} 47. Bc2+ {[%emt 0:00:00]} Kg7 {[%emt 0:00:00]} 48. Be1 {[%emt 0:00:00]} Bb5 {[%emt 0:00:00]} 49. Bc3 {[%emt 0:00:00]} Bc4 {[%emt 0:00:00]} 50. Kf4 {[%emt 0:00:00]} Bb5 {[%emt 0:00:00]} 51. Kf3 {[%emt 0:00:00]} Bc4 {[%emt 0:00:00]} 52. Kf2 {[%emt 0:00:00]} Bb5 {[%emt 0:00:00]} 53. b3 {[%emt 0:00:00]} Kh6 {[%emt 0:00:00]} 54. Bb1 {[%emt 0:00:00]} Kg7 {[%emt 0:00:00]} 55. Bc2 {[%emt 0:00:00]} Kh6 {[%emt 0:00:00]} 56. Bd1 {[%emt 0:00:00]} Kg7 {[%emt 0:00:00]} 57. Bf3 {[%emt 0:00:00]} Kg6 {[%emt 0:00:00]} 58. Bg2 {[%emt 0:00:00]} Kg7 {[%emt 0:00:00]} 59. Ke3 {[%emt 0:00:00]} Kg6 {[%emt 0:00:00]} 60. Bf3 {[%emt 0:01:11]} Kg7 {[%emt 0:00:00]} 61. Bd1 {[%emt 0:02:54]} Kg6 {[%emt 0:00:00]} 62. Bc2+ {[%emt 0:00:17]} Kg7 {[%emt 0:00:00]} 63. Kf4 {[%emt 0:01:23]} Bf1 {[%emt 0:00:00]} 64. Ke3 {[%emt 0:02:18]} 1/2-1/2

[Event "11th LCC FIDE Open 2019"]
[Site "London"]
[Date "2019.11.29"]
[Round "1.30"]
[White "Jacobs, Robert"]
[Black "Zujev, Oleg"]
[Result "0-1"]
[ECO "D02"]
[WhiteElo "1935"]
[BlackElo "2316"]
[Annotator "ChessBase"]
[PlyCount "76"]
[EventDate "2019.11.29"]
[EventType "swiss"]
[EventCountry "ENG"]
[SourceTitle "playchess.com"]
[Source "ChessBase"]
[SourceQuality "1"]
[TimeControl "40/5400+30:1800+30"]

1. g3 {[%emt 0:00:00]} Nf6 {[%emt 0:00:04]} 2. Bg2 {[%emt 0:00:00]} c5 {[%emt 0:00:55]} 3. Nf3 {[%emt 0:01:35]} Nc6 {[%emt 0:00:48]} 4. O-O {[%emt 0:00:51]} d5 {[%emt 0:01:19]} 5. d4 {[%emt 0:00:50]} cxd4 {[%emt 0:01:14]} 6. Nxd4 {[%emt 0:00:17]} e5 {[%emt 0:00:08]} 7. Nxc6 {[%emt 0:01:09]} bxc6 {[%emt 0:00:06]} 8. c4 {[%emt 0:00:20]} Be6 {[%emt 0:05:52]} 9. Qa4 {[%emt 0:04:33]} Qd7 {[%emt 0:11:32]} 10. Nc3 {[%emt 0:01:50]} Rd8 {[%emt 0:06:00]} 11. Bg5 {[%emt 0:03:00]} Bc5 {[%emt 0:02:30]} 12. Rad1 {[%emt 0:07:07]} Bd4 {[%emt 0:04:25]} 13. e3 {[%emt 0:30:42]} Bxc3 {[%emt 0:01:10]} 14. bxc3 {[%emt 0:00:05]} O-O {[%emt 0:02:22]} 15. e4 {[%emt 0:02:01]} d4 {[%emt 0:14:09]} 16. cxd4 {[%emt 0:00:30]} exd4 {[%emt 0:00:09]} 17. e5 {[%emt 0:01:06]} h6 {[%emt 0:00:17]} 18. Be3 {[%emt 0:01:33]} c5 {[%emt 0:02:21]} 19. Qxd7 {[%emt 0:01:55]} Nxd7 {[%emt 0:00:15]} 20. Bf4 {[%emt 0:03:43]} g5 {[%emt 0:07:50]} 21. Bc1 {[%emt 0:00:49]} Nxe5 {[%emt 0:00:48]} 22. f4 {[%emt 0:03:11]} Nxc4 {[%emt 0:01:32]} 23. fxg5 {[%emt 0:00:45]} hxg5 {[%emt 0:04:08]} 24. Bxg5 {[%emt 0:00:06]} Ne3 {[%emt 0:02:07]} 25. Bxe3 {[%emt 0:05:30]} dxe3 {[%emt 0:00:06]} 26. Rde1 {[%emt 0:00:17]} Rd2 {[%emt 0:05:05]} 27. Rxe3 {[%emt 0:01:10]} Rb8 {[%emt 0:00:27]} 28. Be4 {[%emt 0:11:34]} Bh3 {[%emt 0:06:36]} 29. Rc1 {[%emt 0:02:41]} Rbb2 {[%emt 0:01:38]} 30. Rec3 {[%emt 0:01:06]} Bg2 {[%emt 0:01:50]} 31. Bc2 {[%emt 0:01:17]} Rxa2 {[%emt 0:08:59]} 32. Rxc5 {[%emt 0:00:12]} Bf3 {[%emt 0:01:33]} 33. Bb3 {[%emt 0:12:34]} Rg2+ {[%emt 0:01:43]} 34. Kf1 {[%emt 0:00:09]} Raf2+ {[%emt 0:00:46]} 35. Ke1 {[%emt 0:00:05]} Re2+ {[%emt 0:00:54]} 36. Kf1 {[%emt 0:00:12]} Rxh2 {[%emt 0:00:54]} 37. Bxf7+ {[%emt 0:00:10]} Kf8 {[%emt 0:00:21]} 38. Rc8+ {[%emt 0:00:59]} Kg7 {[%emt 0:00:09]} 0-1

[Event "11th LCC FIDE Open 2019"]
[Site "London"]
[Date "2019.11.29"]
[Round "1.33"]
[White "Wu, Li"]
[Black "Rogacewicz, Mikolaj"]
[Result "1/2-1/2"]
[ECO "E17"]
[WhiteElo "2293"]
[BlackElo "1921"]
[Annotator "ChessBase"]
[PlyCount "63"]
[EventDate "2019.11.29"]
[EventType "swiss"]
[EventCountry "ENG"]
[SourceTitle "playchess.com"]
[Source "ChessBase"]
[SourceQuality "1"]
[TimeControl "40/5400+30:1800+30"]

1. Nf3 {[%emt 0:00:00]} Nf6 {[%emt 0:00:00]} 2. g3 {[%emt 0:00:05]} b6 {[%emt 0:02:10]} 3. Bg2 {[%emt 0:00:14]} Bb7 {[%emt 0:00:11]} 4. O-O {[%emt 0:00:51]} e6 {[%emt 0:00:45]} 5. c4 {[%emt 0:06:43]} Be7 {[%emt 0:01:39]} 6. b3 {[%emt 0:03:59]} O-O {[%emt 0:01:23]} 7. Bb2 {[%emt 0:00:14]} d5 {[%emt 0:06:22]} 8. cxd5 {[%emt 0:02:57]} Nxd5 {[%emt 0:02:12]} 9. d4 {[%emt 0:06:01]} Nd7 {[%emt 0:05:25]} 10. Nbd2 {[%emt 0:12:32]} c5 {[%emt 0:03:26]} 11. Nc4 {[%emt 0:07:00]} Rc8 {[%emt 0:09:44]} 12. Rc1 {[%emt 0:09:21]} b5 {[%emt 0:07:58]} 13. Nce5 {[%emt 0:00:27]} Nxe5 {[%emt 0:03:00]} 14. Nxe5 {[%emt 0:00:07]} f6 {[%emt 0:01:07]} 15. Nd3 {[%emt 0:03:30]} c4 {[%emt 0:02:52]} 16. bxc4 {[%emt 0:02:47]} bxc4 {[%emt 0:03:29]} 17. Nc5 {[%emt 0:01:22]} Bxc5 {[%emt 0:07:14]} 18. dxc5 {[%emt 0:00:04]} Qa5 {[%emt 0:01:47]} 19. Rxc4 {[%emt 0:03:24]} Rxc5 {[%emt 0:05:37]} 20. Rxc5 {[%emt 0:05:10]} Qxc5 {[%emt 0:00:09]} 21. e4 {[%emt 0:09:02]} Nb6 {[%emt 0:03:00]} 22. Qb3 {[%emt 0:01:33]} Qc4 {[%emt 0:02:48]} 23. Rc1 {[%emt 0:02:38]} Qxb3 {[%emt 0:02:19]} 24. axb3 {[%emt 0:00:03]} Rd8 {[%emt 0:02:42]} 25. f3 {[%emt 0:05:49]} Rd3 {[%emt 0:05:29]} 26. Bh3 {[%emt 0:03:54]} Bc8 {[%emt 0:04:04]} 27. f4 {[%emt 0:04:59]} Kf7 {[%emt 0:03:00]} 28. Bc3 {[%emt 0:00:58]} Bb7 {[%emt 0:04:09]} 29. Bf1 {[%emt 0:03:56]} Rd7 {[%emt 0:01:24]} 30. Bg2 {[%emt 0:00:30]} f5 {[%emt 0:00:55]} 31. exf5 {[%emt 0:00:08]} exf5 {[%emt 0:00:23]} 32. Bxb7 {[%emt 0:00:33]} 1/2-1/2